bitfinex-derivatives/quotes_BNBF0:USTF0_20251010
["timestamp","ask_amount","ask_price","bid_price","bid_amount"]
[1760060096038,0.37191991,1256.4,1255.6,0.59354394]
[1760060096238,0.37191991,1256.4,1255.7,0.57991958]
[1760060096438,0.37191991,1256.4,1255.8,0.57991958]
[1760060096640,0.37191991,1256.4,1255.9,0.57991958]
[1760060096839,0.37191991,1256.4,1256.0,0.57991958]
[1760060097043,0.37191991,1256.4,1256.1,0.57991958]
[1760060097243,0.37191991,1256.4,1255.6,0.59354394]
[1760060097442,0.37191991,1256.4,1255.7,0.57984421]
[1760060097641,0.37191991,1256.4,1255.8,0.57984421]
[1760060097843,0.37191991,1256.4,1255.9,0.57984421]
[1760060098042,0.37191991,1256.4,1256.0,0.57984421]
[1760060098243,0.37191991,1256.4,1256.1,0.57984421]
[1760060098441,0.37191991,1256.4,1255.6,0.59354394]
[1760060098746,0.37191991,1256.4,1255.7,0.57980292]
[1760060099042,0.37191991,1256.4,1255.8,0.57980292]
[1760060099248,0.37191991,1256.4,1255.9,0.57980292]
[1760060099446,0.37191991,1256.4,1256.0,0.57980292]
[1760060099748,0.37191991,1256.4,1256.1,0.57980292]
[1760060100043,0.37191991,1256.4,1255.6,0.59354394]
[1760060100247,0.37191991,1256.4,1255.7,0.57977728]
[1760060100446,0.37191991,1256.4,1255.8,0.57977728]
[1760060100646,0.37191991,1256.4,1255.9,0.57977728]
[1760060100844,0.37191991,1256.4,1256.0,0.57977728]
[1760060101048,0.37191991,1256.4,1256.1,0.57977728]
[1760060101249,0.37191991,1256.4,1255.3,0.59354394]
[1760060101445,0.37191991,1256.4,1255.4,0.57988304]
[1760060101648,0.37191991,1256.4,1255.5,0.57988304]
[1760060101944,0.37191991,1256.4,1255.6,0.57988304]
[1760060102148,0.37191991,1256.4,1255.7,0.57988304]
[1760060102347,0.37191991,1256.4,1255.8,0.57988304]
[1760060102547,0.37191991,1256.4,1255.9,0.57988304]
[1760060102747,0.37191991,1256.4,1256.0,0.57988304]
[1760060102950,0.37191991,1256.4,1255.2,0.59354394]
[1760060103148,0.37191991,1256.4,1255.3,0.57971061]
[1760060103347,0.37191991,1256.4,1255.4,0.57971061]
[1760060103552,0.37191991,1256.4,1255.5,0.57971061]
[1760060103751,0.37191991,1256.4,1255.6,0.57971061]
[1760060103954,0.37191991,1256.4,1255.7,0.57971061]
[1760060104153,0.37191991,1256.4,1255.8,0.57971061]
[1760060104350,0.37191991,1256.4,1255.9,0.57971061]
[1760060104555,0.37191991,1256.4,1256.0,0.57971061]
[1760060104755,0.37191991,1256.4,1255.1,0.59354394]
[1760060104956,0.37191991,1256.4,1255.2,0.57959352]
[1760060105155,0.37191991,1256.4,1255.3,0.57959352]
[1760060105356,0.37191991,1256.4,1255.4,0.57959352]
[1760060105555,0.37191991,1256.4,1255.5,0.57959352]
[1760060105752,0.37191991,1256.4,1255.6,0.57959352]
[1760060105952,0.37191991,1256.4,1255.7,0.57959352]
[1760060106152,0.37191991,1256.4,1255.8,0.57959352]
[1760060106353,0.37191991,1256.4,1255.9,0.57959352]
[1760060106554,0.37191991,1256.4,1255.1,0.59354394]
[1760060106853,0.37191991,1256.4,1255.2,0.57945854]
[1760060107056,0.37191991,1256.4,1255.3,0.57945854]
[1760060107257,0.37191991,1256.4,1255.4,0.57945854]
[1760060107453,0.37191991,1256.4,1255.5,0.57945854]
[1760060107657,0.37191991,1256.4,1255.6,0.57945854]
[1760060107854,0.37191991,1256.4,1255.7,0.57945854]
[1760060108053,0.37191991,1256.4,1255.8,0.57945854]
[1760060108358,0.37191991,1256.4,1255.9,0.57945854]
[1760060108554,0.37191991,1256.4,1255.2,0.59354394]
[1760060108760,0.37191991,1256.4,1255.3,0.57930486]
[1760060108961,0.37191991,1256.4,1255.4,0.57930486]
[1760060109162,0.37191991,1256.4,1255.2,0.59354394]
[1760060109163,0.37191991,1256.4,1255.5,0.57930486]
[1760060109358,0.37191991,1256.4,1255.6,0.57930486]
[1760060109562,0.37191991,1256.4,1254.9,0.59354394]
[1760060109763,0.37191991,1256.4,1255.0,0.57933086]
[1760060110059,0.37191991,1256.4,1255.1,0.57933086]
[1760060110263,0.37191991,1256.4,1255.2,0.57933086]
[1760060110462,0.37191991,1256.4,1255.3,0.57933086]
[1760060110762,0.37191991,1256.4,1255.4,0.57933086]
[1760060111058,0.37191991,1256.4,1255.5,0.57933086]
[1760060111258,0.37191991,1256.4,1254.9,0.59354394]
[1760060111462,0.37191991,1256.4,1255.0,0.57897573]
[1760060111758,0.37191991,1256.4,1255.1,0.57897573]
[1760060111962,0.37191991,1256.4,1255.2,0.57897573]
[1760060112259,0.37191991,1256.4,1255.3,0.57897573]
[1760060112460,0.37191991,1256.4,1255.4,0.57897573]
[1760060112659,0.37191991,1256.4,1255.5,0.57897573]
[1760060112959,0.37191991,1256.4,1254.9,0.59354394]
[1760060113162,0.37191991,1256.4,1255.0,0.57882587]
[1760060113363,0.37191991,1256.4,1255.1,0.57882587]
[1760060113560,0.37191991,1256.4,1255.2,0.57882587]
[1760060113764,0.37191991,1256.4,1255.3,0.57882587]
[1760060113964,0.37191991,1256.4,1255.4,0.57882587]
[1760060114166,0.37191991,1256.4,1254.9,0.59354394]
[1760060114365,0.37191991,1256.4,1255.0,0.57873343]
[1760060114565,0.37191991,1256.4,1255.1,0.57873343]
[1760060114861,0.37191991,1256.4,1255.2,0.57873343]
[1760060115062,0.37191991,1256.4,1255.3,0.57873343]
[1760060115267,0.37191991,1256.4,1254.9,0.59354394]
[1760060115564,0.37191991,1256.4,1255.0,0.57842316]
[1760060115868,0.37191991,1256.4,1255.1,0.57842316]
[1760060116063,0.37191991,1256.4,1255.2,0.57842316]
[1760060116266,0.37191991,1256.4,1255.3,0.57842316]
[1760060116462,0.37191991,1256.4,1255.4,0.57842316]
[1760060116765,0.37191991,1256.4,1255.5,0.57842316]
[1760060116966,0.37191991,1256.4,1255.1,0.59354394]
[1760060117161,0.37191991,1256.4,1255.2,0.57839675]
[1760060117466,0.37191991,1256.4,1255.3,0.57839675]
[1760060117662,0.37191991,1256.4,1255.4,0.57839675]
[1760060117861,0.37191991,1256.4,1255.5,0.57839675]
[1760060118064,0.37191991,1256.4,1255.1,0.59354394]
[1760060118264,0.37191991,1256.4,1255.2,0.57834203]
[1760060118467,0.37191991,1256.4,1255.3,0.57834203]
[1760060118664,0.37191991,1256.4,1255.4,0.57834203]
[1760060118864,0.37191991,1256.4,1255.0,0.59354394]
[1760060119068,0.37191991,1256.4,1255.1,0.57833821]
[1760060119367,0.37191991,1256.4,1255.2,0.57833821]
[1760060119564,0.37191991,1256.4,1255.3,0.57833821]
[1760060119867,0.37191991,1256.4,1255.4,0.57833821]
[1760060120064,0.37191991,1256.4,1255.5,0.57833821]
[1760060120365,0.37191991,1256.4,1255.0,0.59354394]
[1760060120568,0.37191991,1256.4,1255.1,0.57820642]
[1760060120770,0.37191991,1256.4,1255.2,0.57820642]
[1760060120967,0.37191991,1256.4,1255.3,0.57820642]
[1760060121170,0.37191991,1256.4,1255.4,0.57820642]
[1760060121470,0.37191991,1256.4,1255.5,0.57820642]
[1760060121770,0.37191991,1256.4,1255.0,0.59354394]
[1760060121966,0.37191991,1256.4,1255.1,0.57816904]
[1760060122169,0.37191991,1256.4,1255.2,0.57816904]
[1760060122368,0.37191991,1256.4,1255.3,0.57816904]
[1760060122566,0.37191991,1256.4,1255.4,0.57816904]
[1760060122866,0.37191991,1256.4,1255.5,0.57816904]
[1760060123068,0.37191991,1256.4,1255.0,0.59354394]
[1760060123268,0.37191991,1256.4,1255.1,0.57813563]
[1760060123568,0.37191991,1256.4,1255.2,0.57813563]
[1760060123770,0.37191991,1256.4,1255.3,0.57813563]
[1760060124066,0.37191991,1256.4,1255.4,0.57813563]
[1760060124269,0.37191991,1256.4,1255.5,0.57813563]
[1760060124467,0.37191991,1256.4,1255.0,0.59354394]
[1760060124671,0.37191991,1256.4,1255.1,0.57827672]
[1760060124867,0.37191991,1256.4,1255.2,0.57827672]
[1760060125071,0.37191991,1256.4,1255.3,0.57827672]
[1760060125371,0.37191991,1256.4,1255.4,0.57827672]
[1760060125668,0.37191991,1256.4,1254.9,0.59354394]
[1760060125867,0.37191991,1256.4,1255.0,0.57825218]
[1760060126071,0.37191991,1256.4,1255.1,0.57825218]
[1760060126268,0.37191991,1256.4,1255.2,0.57825218]
[1760060126471,0.37191991,1256.4,1255.3,0.57825218]
[1760060126671,0.37191991,1256.4,1255.4,0.57825218]
[1760060126868,0.37191991,1256.4,1254.9,0.59354394]
[1760060127167,0.37191991,1256.4,1255.0,0.57819578]
[1760060127472,0.37191991,1256.4,1255.1,0.57819578]
[1760060127667,0.37191991,1256.4,1255.2,0.57819578]
[1760060127971,0.37191991,1256.4,1255.3,0.57819578]
[1760060128267,0.37191991,1256.4,1255.4,0.57819578]
[1760060128471,0.37191991,1256.4,1254.9,0.59354394]
[1760060128673,0.37191991,1256.4,1255.0,0.57813968]
[1760060128869,0.37191991,1256.4,1255.1,0.57813968]
[1760060129171,0.37191991,1256.4,1255.2,0.57813968]
[1760060129369,0.37191991,1256.4,1255.3,0.57813968]
[1760060129567,0.37191991,1256.4,1255.4,0.57813968]
[1760060129772,0.37191991,1256.4,1254.9,0.59354394]
[1760060129970,0.37191991,1256.4,1255.0,0.57813306]
[1760060130169,0.37191991,1256.4,1254.9,0.59354394]
[1760060130170,0.37191991,1256.4,1255.1,0.57813306]
[1760060130368,0.37191991,1256.4,1255.2,0.57813306]
[1760060130573,0.37191991,1256.4,1255.3,0.57813306]
[1760060130876,0.37191991,1256.4,1255.4,0.57813306]
[1760060131070,0.37191991,1256.4,1254.9,0.59354394]
[1760060131373,0.37191991,1256.4,1255.0,0.57813112]
[1760060131573,0.37191991,1256.4,1255.1,0.57813112]
[1760060131773,0.37191991,1256.4,1255.2,0.57813112]
[1760060131973,0.37191991,1256.4,1255.3,0.57813112]
[1760060132171,0.37191991,1256.4,1254.8,0.59354394]
[1760060132369,0.37191991,1256.4,1254.9,0.57823356]
[1760060132574,0.37191991,1256.4,1255.0,0.57823356]
[1760060132773,0.37191991,1256.4,1255.1,0.57823356]
[1760060132970,0.37191991,1256.4,1255.2,0.57823356]
[1760060133176,0.37191991,1256.4,1254.8,0.59354394]
[1760060133475,0.37191991,1256.4,1254.9,0.57822532]
[1760060133674,0.37191991,1256.4,1255.0,0.57822532]
[1760060133872,0.37191991,1256.4,1255.1,0.57822532]
[1760060134175,0.37191991,1256.4,1255.2,0.57822532]
[1760060134376,0.13848294,1256.5,1254.8,0.59354394]
[1760060134576,0.13848294,1256.5,1254.9,0.57812289]
[1760060134773,0.13848294,1256.5,1255.0,0.57812289]
[1760060135072,0.13848294,1256.5,1255.1,0.57812289]
[1760060135276,0.13848294,1256.5,1255.2,0.57812289]
[1760060135477,0.13848294,1256.5,1254.7,0.59354394]
[1760060135772,0.13848294,1256.5,1254.8,0.57812618]
[1760060136071,0.13848294,1256.5,1254.9,0.57812618]
[1760060136278,0.13848294,1256.5,1255.0,0.57812618]
[1760060136576,0.13848294,1256.5,1255.1,0.57812618]
[1760060136774,0.13848294,1256.5,1255.2,0.57812618]
[1760060136972,0.13848294,1256.5,1254.7,0.59354394]
[1760060137176,0.13848294,1256.5,1254.8,0.5781204]
[1760060137374,0.13848294,1256.5,1254.9,0.5781204]
[1760060137572,0.13848294,1256.5,1255.0,0.5781204]
[1760060137775,0.13848294,1256.5,1255.1,0.5781204]
[1760060137975,0.13848294,1256.5,1255.2,0.5781204]
[1760060138175,0.13848294,1256.5,1254.8,0.59354394]
[1760060138375,0.13848294,1256.5,1254.9,0.57821409]
[1760060138576,0.13848294,1256.5,1255.0,0.57821409]
[1760060138773,0.13848294,1256.5,1255.1,0.57821409]
[1760060138973,0.13848294,1256.5,1255.2,0.57821409]
[1760060139173,0.13848294,1256.5,1254.8,0.59354394]
[1760060139375,0.13848294,1256.5,1254.9,0.57819364]
[1760060139576,0.13848294,1256.5,1255.0,0.57819364]
[1760060139776,0.13848294,1256.5,1255.1,0.57819364]
[1760060139974,0.13848294,1256.5,1255.2,0.57819364]
[1760060140179,0.13848294,1256.5,1254.7,0.59354394]
[1760060140378,0.13848294,1256.5,1254.8,0.5781854]
[1760060140575,0.13848294,1256.5,1254.9,0.5781854]
[1760060140774,0.13848294,1256.5,1255.0,0.5781854]
[1760060140974,0.13848294,1256.5,1255.1,0.5781854]
[1760060141179,0.13848294,1256.5,1255.2,0.5781854]
[1760060141379,0.13848294,1256.5,1254.7,0.59354394]
[1760060141579,0.13848294,1256.5,1254.8,0.57810268]
[1760060141779,0.13848294,1256.5,1254.9,0.57810268]
[1760060141981,0.13848294,1256.5,1254.7,0.59354394]
[1760060141982,0.13848294,1256.5,1255.0,0.57810268]
[1760060142276,0.13848294,1256.5,1255.1,0.57810268]
[1760060142477,0.13848294,1256.5,1255.2,0.57810268]
[1760060142676,0.13848294,1256.5,1254.7,0.59354394]
[1760060142880,0.13848294,1256.5,1254.8,0.57808146]
[1760060143178,0.13848294,1256.5,1254.9,0.57808146]
[1760060143380,0.13848294,1256.5,1255.0,0.57808146]
[1760060143678,0.13848294,1256.5,1255.1,0.57808146]
[1760060143876,0.13848294,1256.5,1255.2,0.57808146]
[1760060144082,0.13848294,1256.5,1254.5,0.59354394]
[1760060144279,0.13848294,1256.5,1254.6,0.57815312]
[1760060144482,0.13848294,1256.5,1254.7,0.57815312]
[1760060144680,0.13848294,1256.5,1254.8,0.57815312]
[1760060144882,0.13848294,1256.5,1254.9,0.57815312]
[1760060145080,0.13848294,1256.5,1255.0,0.57815312]
[1760060145284,0.13848294,1256.5,1254.5,0.59354394]
[1760060145579,0.13848294,1256.5,1254.6,0.57812487]
[1760060145783,0.13848294,1256.5,1254.7,0.57812487]
[1760060145980,0.13848294,1256.5,1254.8,0.57812487]
[1760060146180,0.13848294,1256.5,1254.9,0.57812487]
[1760060146383,0.13848294,1256.5,1254.4,0.59354394]
[1760060146683,0.13848294,1256.5,1254.5,0.57712305]
[1760060146880,0.13848294,1256.5,1254.6,0.57712305]
[1760060147184,0.13848294,1256.5,1254.7,0.57712305]
[1760060147483,0.13848294,1256.5,1254.8,0.57712305]
[1760060147680,0.13848294,1256.5,1254.9,0.57712305]
[1760060147883,0.13848294,1256.5,1254.3,0.59354394]
[1760060148178,0.13848294,1256.5,1254.4,0.57714851]
[1760060148384,0.13848294,1256.5,1254.5,0.57714851]
[1760060148584,0.13848294,1256.5,1254.6,0.57714851]
[1760060148784,0.13848294,1256.5,1254.7,0.57714851]
[1760060149081,0.13848294,1256.5,1254.3,0.59354394]
[1760060149284,0.13848294,1256.5,1254.4,0.57713876]
[1760060149481,0.13848294,1256.5,1254.5,0.57713876]
[1760060149680,0.13848294,1256.5,1254.6,0.57713876]
[1760060149879,0.13848294,1256.5,1254.7,0.57713876]
[1760060150080,0.13848294,1256.5,1254.3,0.59354394]
[1760060150284,0.13848294,1256.5,1254.4,0.57700901]
[1760060150483,0.13848294,1256.5,1254.5,0.57700901]
[1760060150681,0.13848294,1256.5,1254.6,0.57700901]
[1760060150882,0.13848294,1256.5,1254.7,0.57700901]
[1760060151084,0.13848294,1256.5,1254.3,0.59354394]
[1760060151284,0.13848294,1256.5,1254.1,0.79143466]
[1760060151285,0.13848294,1256.5,1254.4,0.57691213]
[1760060151485,0.13848294,1256.5,1254.5,0.57691213]
[1760060151683,0.13848294,1256.5,1254.6,0.57691213]
[1760060151984,0.13848294,1256.5,1254.7,0.57691213]
[1760060152186,0.13848294,1256.5,1254.8,0.57691213]
[1760060152391,0.13848294,1256.5,1254.0,0.59354394]
[1760060152588,0.13848294,1256.5,1254.1,0.57678124]
[1760060152787,0.13848294,1256.5,1254.2,0.57678124]
[1760060152986,0.13848294,1256.5,1254.3,0.57678124]
[1760060153186,0.13848294,1256.5,1254.4,0.57678124]
[1760060153391,0.13848294,1256.5,1254.5,0.57678124]
[1760060153690,0.13848294,1256.5,1254.6,0.57678124]
[1760060153888,0.13848294,1256.5,1254.7,0.57678124]
[1760060154087,0.13848294,1256.5,1254.8,0.57678124]
[1760060154291,0.13848294,1256.5,1254.0,0.59354394]
[1760060154493,0.13848294,1256.5,1254.1,0.57671893]
[1760060154690,0.13848294,1256.5,1254.2,0.57671893]
[1760060154887,0.13848294,1256.5,1254.3,0.57671893]
[1760060155090,0.13848294,1256.5,1254.4,0.57671893]
[1760060155387,0.13848294,1256.5,1254.5,0.57671893]
[1760060155587,0.13848294,1256.5,1253.7,0.78938565]
[1760060155791,0.19571956,1253.9,1253.8,0.5766742]
[1760060156390,0.19571956,1253.9,1253.8,1.17021814]
[1760060156794,0.13848294,1256.5,1253.8,1.17021814]
[1760060156989,1.9701422,1257.5,1253.9,0.5766742]
[1760060157192,1.9701422,1257.5,1254.0,0.5766742]
[1760060157391,1.9701422,1257.5,1254.1,0.5766742]
[1760060157692,1.9701422,1257.5,1254.2,0.5766742]
[1760060157991,1.9701422,1257.5,1254.3,0.5766742]
[1760060158195,1.9701422,1257.5,1253.8,0.59354394]
[1760060158395,1.9701422,1257.5,1253.9,0.57653026]
[1760060158593,1.9701422,1257.5,1254.0,0.57653026]
[1760060158796,1.9701422,1257.6,1254.1,0.57653026]
[1760060158994,1.9701422,1257.6,1254.2,0.57653026]
[1760060159192,1.9701422,1257.6,1254.3,0.57653026]
[1760060159396,1.9701422,1257.6,1253.8,0.59354394]
[1760060159595,1.9701422,1257.6,1253.9,0.57651396]
[1760060159896,1.9701422,1258.1,1254.0,0.57651396]
[1760060160094,1.9701422,1258.1,1254.1,0.57651396]
[1760060160298,1.9701422,1258.0,1254.2,0.57651396]
[1760060160498,1.9701422,1258.0,1253.5,0.59354394]
[1760060160699,1.9701422,1258.0,1253.6,0.57656272]
[1760060160896,1.9701422,1258.0,1253.7,0.57656272]
[1760060161198,1.9701422,1258.0,1253.8,0.57656272]
[1760060161399,1.9701422,1258.5,1253.9,0.57656272]
[1760060161599,1.9701422,1258.5,1254.0,0.57656272]
[1760060161899,1.9701422,1258.5,1254.1,0.57656272]
[1760060162099,1.9701422,1258.5,1253.6,0.59354394]
[1760060162100,1.9701422,1258.5,1254.2,0.57656272]
[1760060162295,1.9701422,1258.5,1254.3,0.57656272]
[1760060162499,1.9701422,1258.6,1253.6,0.59354394]
[1760060162701,0.19562736,1253.7,1253.6,0.59354394]
[1760060163001,0.19562736,1253.7,1253.6,1.16984628]
[1760060163500,0.19562736,1253.8,1253.6,1.16984628]
[1760060163700,0.19562736,1253.8,1253.7,0.57630234]
[1760060164295,0.19560974,1253.8,1253.7,1.367737]
[1760060164498,1.9701422,1257.3,1253.7,1.367737]
[1760060164697,1.9701422,1257.3,1253.9,0.59196929]
[1760060164901,1.9701422,1257.3,1254.0,0.57630234]
[1760060165102,1.9701422,1257.3,1254.1,0.57630234]
[1760060165303,1.9701422,1257.3,1254.2,0.57630234]
[1760060165501,0.13860041,1257.5,1254.3,0.57630234]
[1760060165698,0.13860041,1257.5,1254.4,0.57630234]
[1760060165897,0.13860041,1257.5,1254.5,0.57630234]
[1760060166198,0.13860041,1257.5,1254.6,0.57630234]
[1760060166399,0.13860041,1257.5,1254.0,0.59196929]
[1760060166698,0.13860041,1257.5,1254.1,0.57620236]
[1760060166902,0.13860041,1257.5,1254.2,0.57620236]
[1760060167103,0.13860041,1257.5,1254.3,0.57620236]
[1760060167304,0.13860041,1257.5,1254.4,0.57620236]
[1760060167504,0.13860041,1257.5,1254.5,0.57620236]
[1760060167704,0.13860041,1257.5,1254.0,0.59196929]
[1760060167901,0.13860041,1257.5,1254.1,0.57624309]
[1760060168101,0.13860041,1257.5,1254.2,0.57624309]
[1760060168404,0.13860041,1257.5,1254.3,0.57624309]
[1760060168601,0.13860041,1257.5,1254.4,0.57624309]
[1760060168802,0.13860041,1257.5,1254.5,0.57624309]
[1760060169008,1.9701422,1257.4,1254.1,0.59196929]
[1760060169206,1.9701422,1257.4,1254.2,0.57632934]
[1760060169406,1.9701422,1257.4,1254.3,0.57632934]
[1760060169604,0.13860041,1257.5,1254.4,0.57632934]
[1760060169808,0.13860041,1257.5,1254.5,0.57632934]
[1760060170007,0.13860041,1257.5,1253.9,0.59196929]
[1760060170008,0.13860041,1257.5,1254.6,0.57632934]
[1760060170204,0.13860041,1257.5,1253.9,0.59196929]
[1760060170408,0.13860041,1257.5,1254.0,0.57646148]
[1760060170707,0.13860041,1257.5,1254.1,0.57646148]
[1760060170907,0.13860041,1257.5,1254.2,0.57646148]
[1760060171207,0.13860041,1257.5,1254.3,0.57646148]
[1760060171406,0.13860041,1257.5,1254.4,0.57646148]
[1760060171604,0.13860041,1257.5,1254.5,0.57646148]
[1760060171904,0.13860041,1257.5,1254.6,0.57646148]
[1760060172103,0.13860041,1257.5,1254.0,0.59196929]
[1760060172307,0.13860041,1257.5,1254.1,0.57649197]
[1760060172607,0.13860041,1257.5,1254.2,0.57649197]
[1760060172908,0.13860041,1257.5,1254.3,0.57649197]
[1760060173108,0.13860041,1257.5,1254.4,0.57649197]
[1760060173308,0.13860041,1257.5,1254.5,1.16846126]
[1760060173508,0.13860041,1257.5,1254.6,0.57649197]
[1760060173708,0.13860041,1257.5,1254.7,0.57649197]
[1760060174004,0.13860041,1257.5,1254.8,0.57649197]
[1760060174207,0.13860041,1257.5,1254.9,0.57649197]
[1760060174405,0.13860041,1257.5,1254.4,0.59196929]
[1760060174608,0.13860041,1257.5,1254.5,0.57649276]
[1760060174808,0.13860041,1257.5,1254.6,0.57649276]
[1760060175007,0.13860041,1257.5,1254.7,0.57649276]
[1760060175305,0.13860041,1257.5,1254.8,0.57649276]
[1760060175510,0.13860041,1257.5,1254.4,0.59196929]
[1760060175805,0.13860041,1257.5,1254.5,0.5758263]
[1760060176008,0.13860041,1257.5,1254.6,0.5758263]
[1760060176210,0.13860041,1257.5,1254.7,0.5758263]
[1760060176508,0.13860041,1257.5,1254.8,0.5758263]
[1760060176708,0.13860041,1257.5,1254.4,0.59196929]
[1760060176908,0.13860041,1257.5,1254.5,0.57593726]
[1760060177104,0.13860041,1257.5,1254.4,0.59196929]
[1760060177105,0.13860041,1257.5,1254.6,0.57593726]
[1760060177409,0.13860041,1257.5,1254.7,0.57593726]
[1760060177604,0.13860041,1257.5,1254.4,0.59196929]
[1760060177605,0.13860041,1257.5,1254.8,0.57593726]
[1760060177804,0.13860041,1257.5,1254.4,0.59196929]
[1760060178104,0.13860041,1257.5,1254.5,0.57603933]
[1760060178307,0.13860041,1257.5,1254.6,0.57603933]
[1760060178602,0.13860041,1257.5,1254.7,0.57603933]
[1760060178805,0.13860041,1257.5,1254.2,0.59196929]
[1760060179009,0.1960372,1254.4,1254.3,0.57618171]
[1760060181408,0.13860041,1257.5,1254.3,0.57618171]
[1760060181712,0.13860041,1257.5,1254.4,0.57618171]
[1760060181912,0.13860041,1257.5,1254.5,0.57618171]
[1760060182113,0.13860041,1257.5,1254.6,0.57618171]
[1760060182311,0.13860041,1257.5,1253.8,0.787811]
[1760060182613,0.19605207,1254.1,1253.9,0.57661499]
[1760060182814,0.19605207,1254.1,1254.0,0.57661499]
[1760060183913,0.19605207,1254.1,1254.0,1.16858428]
[1760060184412,0.19605207,1254.2,1254.0,0.7724567]
[1760060184608,2.10874261,1257.5,1254.1,1.36760364]
[1760060184810,2.10874261,1257.5,1254.3,0.59324148]
[1760060185010,2.10874261,1257.5,1254.4,0.57661499]
[1760060185213,1.9701422,1257.4,1254.5,0.57661499]
[1760060185413,1.9701422,1257.4,1254.6,0.57661499]
[1760060185611,1.9701422,1257.4,1254.7,0.57661499]
[1760060185813,1.9701422,1257.4,1254.3,0.59324148]
[1760060186114,1.9701422,1257.4,1254.4,1.17011215]
[1760060186414,1.9701422,1257.3,1254.5,0.57687067]
[1760060186613,1.9701422,1257.3,1254.6,0.57687067]
[1760060186814,1.9701422,1257.3,1254.7,0.57687067]
[1760060187110,1.9701422,1257.3,1254.3,0.59324148]
[1760060187315,1.9701422,1257.3,1254.4,0.57700182]
[1760060187515,1.9701422,1257.3,1254.5,0.57700182]
[1760060187815,1.9701422,1257.1,1254.6,0.57700182]
[1760060188016,1.9701422,1257.1,1254.2,0.59324148]
[1760060188315,1.9701422,1257.2,1254.3,0.57709638]
[1760060188510,1.9701422,1257.2,1254.4,0.57709638]
[1760060188715,1.9701422,1257.0,1254.0,0.59324148]
[1760060188915,1.9701422,1257.0,1254.1,0.57725839]
[1760060189115,1.9701422,1257.0,1254.2,0.57725839]
[1760060189313,1.9701422,1257.1,1254.3,0.57725839]
[1760060189517,1.9701422,1257.1,1254.4,0.57725839]
[1760060189715,1.9701422,1257.1,1254.0,0.59324148]
[1760060190014,1.9701422,1257.0,1254.1,0.57733332]
[1760060190316,1.9701422,1257.0,1254.2,0.57733332]
[1760060190612,1.9701422,1257.0,1254.3,0.57733332]
[1760060190812,1.9701422,1257.0,1254.4,0.57733332]
[1760060191016,1.9701422,1257.0,1254.0,0.59324148]
[1760060191317,1.9701422,1257.0,1254.1,0.57742417]
[1760060191616,1.9701422,1257.0,1254.2,0.57742417]
[1760060191818,1.9701422,1257.0,1254.3,0.57742417]
[1760060192017,1.9701422,1257.0,1254.4,0.57742417]
[1760060192218,1.9701422,1257.0,1254.0,0.59324148]
[1760060192517,1.9701422,1257.0,1254.1,0.57756072]
[1760060192715,1.9701422,1257.0,1254.2,0.57756072]
[1760060192920,0.13860041,1257.5,1254.3,0.57756072]
[1760060193219,0.13860041,1257.5,1253.5,0.59324148]
[1760060193417,0.19625685,1253.7,1253.6,1.17084113]
[1760060193618,0.19625685,1253.7,1253.6,0.57759965]
[1760060193817,0.13860041,1257.5,1253.6,0.57759965]
[1760060194020,0.13860041,1257.5,1253.7,0.57759965]
[1760060194221,0.13860041,1257.5,1253.8,0.57759965]
[1760060194419,0.13860041,1257.5,1253.9,0.57759965]
[1760060194618,1.9701422,1256.7,1254.0,0.57759965]
[1760060194819,1.9701422,1256.7,1253.5,0.59324148]
[1760060195021,1.9701422,1256.6,1253.6,0.57756514]
[1760060195216,1.9701422,1256.6,1253.7,0.57756514]
[1760060195420,1.9701422,1256.6,1253.8,0.57756514]
[1760060195621,1.9701422,1256.7,1253.9,0.57756514]
[1760060195819,1.9701422,1256.7,1254.0,0.57756514]
[1760060196120,1.9701422,1256.7,1253.5,0.59324148]
[1760060196322,1.9701422,1256.7,1253.6,0.57743148]
[1760060196619,1.9701422,1256.7,1253.7,0.57743148]
[1760060196818,1.9701422,1256.7,1253.8,0.57743148]
[1760060197020,1.9701422,1256.7,1253.9,0.57743148]
[1760060197320,1.9701422,1256.7,1254.0,0.57743148]
[1760060197524,1.9701422,1256.7,1253.5,0.59324148]
[1760060197819,1.9701422,1256.7,1253.6,0.57744597]
[1760060198018,1.9701422,1256.7,1253.7,0.57744597]
[1760060198218,1.9701422,1256.9,1253.8,0.57744597]
[1760060198518,1.9701422,1256.9,1253.9,0.57744597]
[1760060198719,1.9701422,1256.9,1253.5,0.59324148]
[1760060198921,1.9701422,1256.9,1253.6,0.57742359]
[1760060199120,1.9701422,1256.9,1253.7,0.57742359]
[1760060199419,1.9701422,1256.9,1253.8,0.57742359]
[1760060199618,1.9701422,1256.9,1253.9,0.57742359]
[1760060199823,1.9701422,1256.9,1253.4,0.59324148]
[1760060199824,1.9701422,1257.0,1253.4,0.59324148]
[1760060200123,1.9701422,1257.0,1253.5,0.57740294]
[1760060200321,1.9701422,1257.0,1253.6,0.57740294]
[1760060200526,1.9701422,1257.0,1253.7,0.57740294]
[1760060200719,1.9701422,1257.0,1253.8,0.57740294]
[1760060201021,1.9701422,1257.0,1253.9,0.57740294]
[1760060201221,1.9701422,1257.0,1253.4,0.59324148]
[1760060201418,1.9701422,1257.0,1253.5,0.57733819]
[1760060201622,1.9701422,1257.0,1253.6,0.57733819]
[1760060201824,1.9701422,1257.3,1253.7,0.57733819]
[1760060202020,1.9701422,1257.3,1253.8,0.57733819]
[1760060202222,1.9701422,1257.3,1253.9,0.57733819]
[1760060202422,1.9701422,1257.3,1253.3,0.59324148]
[1760060202625,1.9701422,1257.3,1253.4,0.57740807]
[1760060202823,1.9701422,1257.3,1253.5,0.57740807]
[1760060203024,1.9701422,1257.3,1253.6,0.57740807]
[1760060203226,1.9701422,1257.3,1253.7,0.57740807]
[1760060203523,0.13860041,1257.5,1253.3,0.59324148]
[1760060203524,1.9701422,1257.1,1253.8,0.57740807]
[1760060203723,1.9701422,1257.1,1253.9,0.57740807]
[1760060204021,1.9701422,1257.1,1253.3,0.59324148]
[1760060204227,1.9701422,1257.1,1253.4,0.57739469]
[1760060204424,1.9701422,1257.1,1253.5,0.57739469]
[1760060204623,1.9701422,1257.1,1253.6,0.57739469]
[1760060204822,1.9701422,1257.0,1253.7,0.57739469]
[1760060205026,1.9701422,1257.0,1253.8,0.57739469]
[1760060205323,1.9701422,1257.0,1253.3,0.59324148]
[1760060205527,1.9701422,1257.0,1253.4,0.577284]
[1760060205728,1.9701422,1257.0,1253.5,0.577284]
[1760060205926,1.9701422,1257.0,1253.6,0.577284]
[1760060206123,1.9701422,1257.0,1253.7,0.577284]
[1760060206326,1.9701422,1257.0,1253.8,0.577284]
[1760060206527,1.9701422,1257.1,1253.2,0.78908319]
[1760060206727,0.19608859,1253.4,1253.3,0.57628658]
[1760060214629,2.10874261,1257.5,1253.3,1.36727523]
[1760060214827,1.9701422,1257.4,1253.6,0.59332646]
[1760060215031,1.9701422,1257.4,1253.7,0.57628658]
[1760060215232,1.9701422,1257.4,1253.8,0.57628658]
[1760060215529,1.9701422,1257.4,1253.9,0.57574671]
[1760060215829,2.10874261,1257.5,1254.0,0.57574671]
[1760060216027,2.10874261,1257.5,1254.1,0.57574671]
[1760060216236,2.10874261,1257.5,1253.6,0.59326586]
[1760060216433,0.13860041,1257.5,1253.7,0.57572582]